Cogmind - Beta 14 @@@ ROGUE MODE // 2024.11.21 @ 23:01:21 Player: akira Result: Destroyed by C-40 Crusher with Compactor Performance ------------- Evolutions (3) 1500 Regions Visited (7) 1400 Robots Destroyed (62) 310 Value Destroyed (2012) 2012 Prototype IDs (2) 40 Alien Tech Used (0) 0 Bonus (1193) 1193 TOTAL SCORE: 6455 Bonus ------- High Alert Combat Kills 72 Follower Combat Kills 421 Entered Garrisons 200 Used RIF Installer 500 Cogmind --------- Core Integrity 0/700 Matter 274/300 Energy 100/100 System Corruption 19% Temperature Warm (105) Movement Core (50) Location -7/Waste Parts ------- > --- POWER (1) -------- (None) > --- PROPULSION (4) --- (None) > --- UTILITY (6) ------ (None) > --- WEAPON (2) ------- (None) > --- INVENTORY (5) ---- Energy Filter Hacking Suite Authchip [Weapon] Peak State ------------ > --- POWER ------------ Ion Engine > --- PROPULSION ------- VTOL Module VTOL Module VTOL Module Cesium-ion Thruster > --- UTILITY ---------- Energy Filter Hacking Suite Authchip [Device] Relay Coupler [NC] Relay Coupler [Specialist] Drone Bay > --- WEAPON ----------- Datajack Katana > --- INVENTORY -------- VTOL Module Melee Analysis Suite Hacking Suite Authchip [Weapon] [Rating: 37] Favorites ----------- Power Improved Ion Engine Engine Improved Ion Engine Power Core Light Nuclear Core Propulsion Aluminum Leg Treads Light Treads Leg Aluminum Leg Hover Unit Gravmag System Flight Unit VTOL Module Utility Hacking Suite Device Drone Bay Storage Small Storage Unit Processor Signal Interpreter Hackware Hacking Suite Weapon Katana Ballistic Gun Heavy Assault Rifle Special Weapon Remote Datajack Slashing Weapon Katana Special Melee Weapon Datajack Build | -11 -10 -9 -9 -9 -9 -7 -7 ------- Run | Yrd Mat Mat Sto Gar Rec Fac Was Slots Evolved 6 | . . 2 . . . 4 . Power . | . . . . . . . . Propulsion 2 | . . 2 . . . . . Utility 4 | . . . . . . 4 . Weapon . | . . . . . . . . Parts Attached 67 | 8 9 15 17 2 7 9 . Power 10 | 2 . 4 2 . 1 1 . Engine 8 | 2 . 3 2 . 1 . . Core 2 | . . 1 . . . 1 . Reactor . | . . . . . . . . Propulsion 36 | 4 4 9 12 1 4 2 . Treads 2 | 2 . . . . . . . Leg 17 | 2 . 7 8 . . . . Wheel . | . . . . . . . . Hover 1 | . . . . 1 . . . Flight 16 | . 4 2 4 . 4 2 . Utility 10 | 1 2 . . . 1 6 . Device 2 | . . . . . . 2 . Storage 1 | 1 . . . . . . . Processor 3 | . 1 . . . . 2 . Hackware 4 | . 1 . . . 1 2 . Protection . | . . . . . . . . Artifact . | . . . . . . . . Weapon 11 | 1 3 2 3 1 1 . . Energy Gun . | . . . . . . . . Energy Cannon . | . . . . . . . . Ballistic Gun 6 | 1 3 1 1 . . . . Ballistic Cannon . | . . . . . . . . Launcher . | . . . . . . . . Special Weapon 1 | . . . . 1 . . . Impact Weapon . | . . . . . . . . Slashing Weapon 3 | . . 1 2 . . . . Piercing Weapon . | . . . . . . . . Special Melee Weapon 1 | . . . . . 1 . . Unidentified Prototypes 2 | . . . 2 . . . . Parts Lost 22 | . . 7 . 5 1 6 3 Power 5 | . . 2 . 1 . 1 1 Propulsion 11 | . . 4 . 3 . 4 . Utility 2 | . . . . . . . 2 Weapon 4 | . . 1 . 1 1 1 . Highest Loss Streak 5 | . . 5 . 5 1 4 3 To Critical Strikes . | . . . . . . . . Average Slot Usage (%) 86 | . 77 80 92 93 83 85 63 Engine 9 | . 14 10 10 9 7 3 . Leg 14 | . 1 21 11 39 2 . . Flight 18 | . 26 7 26 . 33 23 6 Processor 10 | . 9 11 11 11 7 4 13 Hackware 13 | . 9 11 11 11 14 29 27 Ballistic Gun 8 | . 14 11 10 9 . . . Slashing Weapon 8 | . . 8 10 11 11 5 . Special Melee Weapon 1 | . . . . . 4 7 6 Peak Build Rating 37 | 5 13 16 23 17 19 37 27 Average Rating 17 | 4 9 13 20 15 16 31 23 On Entrance 13 | . 5 11 16 16 17 19 27 Naked Turns 15 | . . . . . . . 15 Heaviest Build 14 | 11 11 12 12 10 8 14 6 Greatest Support 46 | 40 20 40 46 40 16 17 4 Greatest Overweight (x) 2 | . . 1 2 . . 1 1 Average Overweight (x) . | . . . . . . . 1 Largest Inventory Capacity 8 | 8 8 5 5 5 5 5 5 Average Capacity 5 | 7 5 5 5 5 5 5 5 Most Carried 7 | 5 7 5 5 5 5 5 3 Average Carried 4 | 3 4 4 4 4 4 4 3 Final Capacity 8 | 8 5 5 5 5 5 5 5 Final Carried 5 | 5 5 5 5 5 5 3 3 Class Distribution -------------------- 44% | Scavenger-Mutant 27% | Sprinter 15% | Commander-Mutant 6% | Commander-Sprinter 4% | Mutant Dominant Class ---------------- Sprinter | -10/Materials Scavenger-Mutant | -9/Materials Commander-Mutant | -9/Storage Scavenger-Mutant | -9/Garrison Sprinter | -9/Recycling Sprinter | -7/Factory Mutant | -7/Waste Resources | -11 -10 -9 -9 -9 -9 -7 -7 ----------- Run | Yrd Mat Mat Sto Gar Rec Fac Was Matter Collected 1148 | 205 241 276 232 34 88 72 . Remotely . | . . . . . . . . Salvage Created 2759 | . 211 757 860 317 379 235 . Parts 149 | . 18 47 46 15 17 6 . Haulers Intercepted 2 | . . . 2 . . . . Recyclers Shooed 2 | . . . . . 2 . . Parts Field Recycled . | . . . . . . . . Retrieved Matter . | . . . . . . . . Parts Self-Destructed . | . . . . . . . . Prevented . | . . . . . . . . Kills | -11 -10 -9 -9 -9 -9 -7 -7 ------- Run | Yrd Mat Mat Sto Gar Rec Fac Was Combat Hostiles Destroyed 49 | . 6 15 15 7 2 4 . Melee 35 | . . 8 14 7 2 4 . Guns 14 | . 6 7 1 . . . . Classes Destroyed 11 | . 4 3 2 1 1 . . Worker 2 | . . . 2 . . . . Hauler 2 | . . . 2 . . . . Recycler 3 | . . . . . 3 . . Operator 2 | . 1 1 . . . . . Watcher 4 | . 1 2 1 . . . . Swarmer 3 | . 3 . . . . . . Grunt 27 | . 3 9 10 3 . 2 . Brawler 2 | . . 1 . . . 1 . Duelist 4 | . . 1 2 . . 1 . Sentry 10 | . . 4 3 1 2 . . Programmer 3 | . . . . 3 . . . Best Kill Streak 5 | . 3 3 5 2 5 3 . Combat Bots Only 5 | . 3 3 5 2 2 3 . Max Kills in Single Turn 1 | . 1 1 1 1 1 1 . Gunslinging . | . . . . . . . . Exploded . | . . . . . . . . Melee 1 | . . 1 1 1 1 1 . Uniques/NPCs Destroyed . | . . . . . . . . Combat | -11 -10 -9 -9 -9 -9 -7 -7 -------- Run | Yrd Mat Mat Sto Gar Rec Fac Was Hostile Shots Fired 221 | . 20 63 43 48 12 22 13 Missed 55 | . 7 20 10 8 2 8 . Damage Taken 3004 | . 109 538 690 627 147 299 594 Core 1155 | . 25 67 112 160 59 138 594 Absorbed by Shields . | . . . . . . . . Regen/Repaired (Parts) 38 | . 18 . 20 . . . . Core Remaining (%) 63 | 100 90 . . . . . . Volleys Fired 92 | 1 25 56 8 . 2 . . Largest 1 | 1 1 1 1 . 1 . . Hottest 23 | 20 23 23 23 . 5 . . Shots Fired 94 | 1 25 57 9 . 2 . . Gun 92 | 1 25 57 9 . . . . Cannon . | . . . . . . . . Launcher . | . . . . . . . . Special 2 | . . . . . 2 . . Kinetic 92 | 1 25 57 9 . . . . Thermal . | . . . . . . . . Explosive . | . . . . . . . . Electromagnetic . | . . . . . . . . Robot Hit Streak 13 | . 6 13 3 . 2 . . Robot Miss Streak 5 | . 3 5 1 . . . . Penetration Max . | . . . . . . . . Secondary Targets . | . . . . . . . . Shots Hit Robots 151 | . 16 48 35 26 13 13 . Core Hits 74 | . 9 25 21 8 4 7 . Critical Kills . | . . . . . . . . Critical Parts Destroyed 1 | . 1 . . . . . . Critical Strikes 7 | . 1 . 3 3 . . . Destroy 1 | . 1 . . . . . . Sever 6 | . . . 3 3 . . . Melee Attacks 140 | . . 15 56 41 12 16 . Impact . | . . . . . . . . Slashing 137 | . . 15 56 41 10 15 . Piercing . | . . . . . . . . Sneak Attacks 12 | . . 1 5 1 5 . . Combat Hostiles 2 | . . . 1 1 . . . Follow-up Attacks . | . . . . . . . . Damage Inflicted 3941 | . 245 955 1198 836 368 339 . Guns 856 | . 245 566 45 . . . . Cannons . | . . . . . . . . Explosions . | . . . . . . . . Melee 3085 | . . 389 1153 836 368 339 . Ramming . | . . . . . . . . Kinetic 856 | . 245 566 45 . . . . Thermal . | . . . . . . . . Explosive . | . . . . . . . . Electromagnetic . | . . . . . . . . Impact . | . . . . . . . . Slashing 3085 | . . 389 1153 836 368 339 . Piercing . | . . . . . . . . Highest Corruption 19 | . . 1 1 5 5 5 19 Average Corruption 2 | . . 1 1 1 5 5 13 Corruption Purged . | . . . . . . . . Corruption Blocked . | . . . . . . . . Effects 42 | . . 8 11 5 8 4 6 Message Errors 10 | . . 2 2 2 2 . 2 Matter Fused 13 | . . . 4 2 2 3 2 Heat Flow Errors 3 | . . . . . 2 . 1 Energy Discharges 7 | . . 2 3 . . 1 1 Parts Fused 1 | . . . . . 1 . . Data Loss (minor) 4 | . . 1 1 1 1 . . Data Loss (major) 2 | . . 2 . . . . . Misfires 2 | . . 1 1 . . . . Overload Shots . | . . . . . . . . Overflow Damage 117 | . . . 36 25 56 . . Projectiles . | . . . . . . . . Explosions . | . . . . . . . . Melee 117 | . . . 36 25 56 . . Knockbacks . | . . . . . . . . Impact . | . . . . . . . . Kinetic . | . . . . . . . . Secondary . | . . . . . . . . Self-Inflicted Damage . | . . . . . . . . Shots . | . . . . . . . . Rammed . | . . . . . . . . Targets Rammed . | . . . . . . . . Kicked . | . . . . . . . . Crushed . | . . . . . . . . Highest Temperature 173 | . . 30 . . 117 . 173 Average Temperature 41 | . . 12 . . 44 . 139 Received Heat Transfer 666 | . 24 288 141 78 45 90 . Siege Activations . | . . . . . . . . Robots Corrupted . | . . . . . . . . Combat Hostiles . | . . . . . . . . Parts Fried . | . . . . . . . . Impact Corruptions . | . . . . . . . . Robots Melted . | . . . . . . . . Combat Hostiles . | . . . . . . . . Parts Melted 1 | . . . . 1 . . . Heat Transferred . | . . . . . . . . Parts Sabotaged . | . . . . . . . . Parts Stolen . | . . . . . . . . Parts Stripped . | . . . . . . . . Power Chain Reactions . | . . . . . . . . Alert | -11 -10 -9 -9 -9 -9 -7 -7 ------- Run | Yrd Mat Mat Sto Gar Rec Fac Was Peak Influence 590 | . 282 334 404 590 306 258 79 Initial 261 | . . 118 123 241 261 178 79 Average 253 | . 168 228 265 431 301 200 61 Maximum Alert Level 2 | . 1 1 2 2 1 1 . Low Security (%) 29 | 100 54 37 18 . . 58 100 Level 1 63 | . 45 62 80 43 100 41 . Level 2 6 | . . . . 56 . . . Level 3 . | . . . . . . . . Level 4 . | . . . . . . . . Level 5 . | . . . . . . . . High Security . | . . . . . . . . Max Security . | . . . . . . . . Squads Dispatched 10 | . 3 4 2 . . 1 . Investigation 3 | . 1 2 . . . . . Extermination 1 | . . . . . . 1 . Reinforcement 4 | . 2 2 . . . . . Assault 2 | . . . 2 . . . . Garrison . | . . . . . . . . Intercept . | . . . . . . . . Searches Triggered . | . . . . . . . . Construction Impeded . | . . . . . . . . Haulers Reinforced . | . . . . . . . . Active Scanning Responses . | . . . . . . . . Cargo Convoy Interrupts . | . . . . . . . . Stealth | -11 -10 -9 -9 -9 -9 -7 -7 --------- Run | Yrd Mat Mat Sto Gar Rec Fac Was Distress Signals 5 | . . 3 2 . . . . Communications Jammed . | . . . . . . . . Distress Signals . | . . . . . . . . Times Spotted 90 | . 11 28 24 11 2 8 6 Peak Tracking Total 7 | . 4 7 5 3 2 3 6 Tactical Retreats 9 | . . 5 2 1 . 1 . Traps | -11 -10 -9 -9 -9 -9 -7 -7 ------- Run | Yrd Mat Mat Sto Gar Rec Fac Was Traps Triggered 2 | . 1 . . . . 1 . Indirectly . | . . . . . . . . Trap Hack Attempts . | . . . . . . . . Triggered . | . . . . . . . . Disarmed . | . . . . . . . . Reprogrammed . | . . . . . . . . Reused . | . . . . . . . . Traps Extracted . | . . . . . . . . Installed . | . . . . . . . . Triggered . | . . . . . . . . Machines | -11 -10 -9 -9 -9 -9 -7 -7 ---------- Run | Yrd Mat Mat Sto Gar Rec Fac Was Machines Disabled . | . . . . . . . . Max in Single Turn . | . . . . . . . . Garrison Relay 1 | . . . . 1 . . . Machines Repaired . | . . . . . . . . Machines Dismantled . | . . . . . . . . Machines Sabotaged . | . . . . . . . . Overloaded Fab Kills . | . . . . . . . . Hacking | -11 -10 -9 -9 -9 -9 -7 -7 --------- Run | Yrd Mat Mat Sto Gar Rec Fac Was Machines Accessed 19 | . 3 4 7 1 4 . . Terminals 14 | . 2 2 5 1 4 . . Fabricators . | . . . . . . . . Repair Stations 2 | . 1 . 1 . . . . Recycling Units 1 | . . 1 . . . . . Scanalyzers 1 | . . 1 . . . . . Garrison Access 1 | . . . 1 . . . . Total Hacks 44 | . 8 15 13 1 7 . . Successful 25 | . 4 8 7 1 5 . . Failed 19 | . 4 7 6 . 2 . . Catastrophic 2 | . . 1 1 . . . . Database Lockouts . | . . . . . . . . Manual 11 | . 5 5 . . 1 . . Terminals 30 | . 4 8 10 1 7 . . Fabricators . | . . . . . . . . Repair Stations 6 | . 4 . 2 . . . . Recycling Units 1 | . . 1 . . . . . Scanalyzers 6 | . . 6 . . . . . Garrison Access 1 | . . . 1 . . . . Terminal Hacks 12 | . . 2 4 1 5 . . Record 1 | . . 1 . . . . . Part Schematic 1 | . . . . . 1 . . Open Door 3 | . . . 3 . . . . Emergency Access Points 1 | . . . . 1 . . . Unreport Threat 1 | . . . 1 . . . . Maintenance Status 1 | . . . . . 1 . . Recall Reinforcements 1 | . . 1 . . . . . Hauler Manifests 1 | . . . . . 1 . . Zone Layout 2 | . . . . . 2 . . Fabricator Hacks . | . . . . . . . . Repair Station Hacks 6 | . 4 . 2 . . . . Scan Component 3 | . 2 . 1 . . . . Repair 3 | . 2 . 1 . . . . Recycling Unit Hacks 1 | . . 1 . . . . . Report Inventory 1 | . . 1 . . . . . Scanalyzer 5 | . . 5 . . . . . Insert Component 3 | . . 3 . . . . . Analyze 2 | . . 2 . . . . . Garrison Access Hacks 1 | . . . 1 . . . . Unlock Access 1 | . . . 1 . . . . Unauthorized Hacks . | . . . . . . . . Terminals . | . . . . . . . . Fabricators . | . . . . . . . . Repair Stations . | . . . . . . . . Recycling Units . | . . . . . . . . Scanalyzers . | . . . . . . . . Garrison Access . | . . . . . . . . Data Cores Recovered . | . . . . . . . . Used . | . . . . . . . . Hacking Detections 8 | . 2 3 1 1 1 . . Full Trace Events 5 | . . 3 1 . 1 . . Feedback Events 1 | . . 1 . . . . . Corruption 1 | . . 1 . . . . . Feedback Blocked . | . . . . . . . . Robot Schematics Acquired . | . . . . . . . . Robots Built . | . . . . . . . . Authchips . | . . . . . . . . Time . | . . . . . . . . Total Robot Build Rating . | . . . . . . . . Part Schematics Acquired 3 | . . 2 . . 1 . . Parts Built . | . . . . . . . . Authchips . | . . . . . . . . Time . | . . . . . . . . Total Part Build Rating . | . . . . . . . . Parts Repaired 3 | . 2 . 1 . . . . Time 102 | . 64 . 38 . . . . Parts Recycled . | . . . . . . . . Recycled Matter . | . . . . . . . . Retrieved Matter . | . . . . . . . . Retrieved Components . | . . . . . . . . Parts Scanalyzed 2 | . . 2 . . . . . Part Schematics Acquired 2 | . . 2 . . . . . Parts Damaged . | . . . . . . . . Bothacking | -11 -10 -9 -9 -9 -9 -7 -7 ------------ Run | Yrd Mat Mat Sto Gar Rec Fac Was Used RIF Installer 1 | . . . . 1 . . . Robots Hacked 2 | . . . . . 2 . . Non-combat 2 | . . . . . 2 . . Combat . | . . . . . . . . Robot Hacks Applied 2 | . . . . . 2 . . link_fov 2 | . . . . . 2 . . Relay Couplers Released 5 | . . . . 5 . . . Machine Destruction 5 | . . . . 5 . . . Attached 2 | . . . . . 1 1 . Fabnet Peak Effective % . | . . . . . . . . Robots Rewired . | . . . . . . . . Allies Hacked . | . . . . . . . . Hacks Repelled . | . . . . . . . . Allies | -11 -10 -9 -9 -9 -9 -7 -7 -------- Run | Yrd Mat Mat Sto Gar Rec Fac Was Total Allies 13 | . . . 12 . . . 1 Largest Group 10 | . . . 10 7 . . 1 Highest-Rated Group 126 | . . . 126 110 . . 31 Highest-Rated Ally 31 | . . . 31 31 . . 31 Total Orders 7 | . . . 7 . . . . ROAM 2 | . . . 2 . . . . FOLLOW 5 | . . . 5 . . . . Ally Attacks 129 | . . . 74 52 . . 3 Total Damage 1222 | . . . 648 511 . . 63 Kills 27 | . . . 16 11 . . . Allies Corrupted 2 | . . . . 2 . . . Allies Melted . | . . . . . . . . Intel | -11 -10 -9 -9 -9 -9 -7 -7 ------- Run | Yrd Mat Mat Sto Gar Rec Fac Was Robot Analysis Total . | . . . . . . . . Derelict Logs Recovered . | . . . . . . . . Drone Launches 2 | . . . . . . 2 . Drone Recoveries . | . . . . . . . . Exploration | -11 -10 -9 -9 -9 -9 -7 -7 ------------- Run | Yrd Mat Mat Sto Gar Rec Fac Was Turns Passed 4078 | 89 373 1020 1344 483 363 267 139 Spaces Moved 3123 | 47 405 757 606 275 638 296 99 Core 9 | 3 . 6 . . . . . Treads 43 | 43 . . . . . . . Legs 814 | 1 14 395 175 229 . . . Wheels . | . . . . . . . . Hover 117 | . . . . 46 71 . . Flight 2140 | . 391 356 431 . 567 296 99 Fastest Speed 26 | 50 32 26 31 70 26 26 115 Average Speed 61 | 152 35 83 58 111 30 37 115 Slowest Speed 200 | 160 120 190 200 120 70 115 115 Overloaded Moves . | . . . . . . . . Propulsion Burnouts . | . . . . . . . . Robots Hopped 7 | . 2 . 3 . 2 . . Cave-ins Triggered 1 | . . . 1 . . . . Exploration Rate (%) 40 | 5 38 33 61 42 86 5 56 Regions Visited 7 Branch Regions 2 Pre-discovered Areas . | . . . . . . . . Known Exits Taken 3 | . 1 1 1 . . . . Unknown Exits Taken 2 | 1 . . . . 1 . . Scrap Searched . | . . . . . . . . Spaces Dug 15 | . . . 15 . . . . Terrain Destroyed 15 | . . . 15 . . . . Melee 15 | . . . 15 . . . . Projectile . | . . . . . . . . AOE . | . . . . . . . . Terrain Rammed . | . . . . . . . . Walls Destroyed . | . . . . . . . . Machines Disabled . | . . . . . . . . Actions | -11 -10 -9 -9 -9 -9 -7 -7 --------- Run | Yrd Mat Mat Sto Gar Rec Fac Was Total 4961 | 60 611 1065 1504 389 781 427 124 Wait 1484 | . 155 209 802 68 122 103 25 Move 3104 | 46 400 756 600 274 633 296 99 Hop 7 | . 2 . 3 . 2 . . Pick Up 25 | 5 8 5 2 2 1 2 . Fast Attach 41 | 4 5 10 12 2 6 2 . Attach 8 | 1 . 1 . . . 6 . Detach 2 | . . . 1 . . 1 . Swap 18 | 3 4 4 5 . 1 1 . Drop 40 | . 12 9 15 2 2 . . Fire 92 | 1 25 56 8 . 2 . . Melee 140 | . . 15 56 41 12 16 . Ram . | . . . . . . . . Kick . | . . . . . . . . Crush . | . . . . . . . . Escape Stasis . | . . . . . . . . Rewire . | . . . . . . . . Trap . | . . . . . . . . Miscellaneous . | . . . . . . . . Route ------- -11/Scrapyard -10/Materials -9/Materials -9/Storage -9/Garrison -9/Recycling -7/Factory -7/Waste History --------- Turn | Location | Event 8 | -11/Scrapyard | Discovered new exit (range 15) 90 | -11/Scrapyard | Entered Materials 214 | -10/Materials | Discovered new exit (range 10) 271 | -10/Materials | Repaired VTOL Module? 309 | -10/Materials | Build established: Sprinter 324 | -10/Materials | Repaired VTOL Module 456 | -10/Materials | Identified exit to Materials 463 | -10/Materials | Entered another Materials area 463 | -9/Materials | Evolved 2 slots: Propulsion x2 711 | -9/Materials | Lost 5 parts (1p3n1w) 969 | -9/Materials | Build established: Scavenger-Mutant 1478 | -9/Materials | Discovered new exit (range 5) 1482 | -9/Materials | Identified exit to Storage 1483 | -9/Materials | Entered Storage 1821 | -9/Storage | Assisted by bots powering up and referring to "LRC-V3" 2078 | -9/Storage | Build established: Commander-Mutant 2505 | -9/Storage | Repaired Katana 2612 | -9/Storage | Met a pair of Derelict thieves 2674 | -9/Storage | Crushed by falling debris 2823 | -9/Storage | Identified exit to Garrison 2827 | -9/Storage | Entered Garrison 2827 | -9/Garrison | Accompanied by 7 allies 2839 | -9/Garrison | Installed Relay Interface Framework 2883 | -9/Garrison | Triggered checkpoint 2923 | -9/Garrison | Core integrity fell below 50% 2975 | -9/Garrison | Build established: Scavenger-Mutant 3025 | -9/Garrison | Triggered checkpoint 3049 | -9/Garrison | Triggered checkpoint 3090 | -9/Garrison | Lost 3 allies 3091 | -9/Garrison | Triggered checkpoint 3129 | -9/Garrison | Discovered new exit (range 10) 3161 | -9/Garrison | Triggered checkpoint 3246 | -9/Garrison | Garrison Relay disabled 3252 | -9/Garrison | Lost 3 allies 3262 | -9/Garrison | Core integrity fell below 20% 3295 | -9/Garrison | Lost 5 parts (1p3n1w) 3310 | -9/Garrison | Identified exit to Recycling 3310 | -9/Garrison | Entered Recycling 3311 | -9/Recycling | Met a Zionite searching for Scraptown 3668 | -9/Recycling | Discovered new exit (range 17) 3673 | -9/Recycling | Entered Factory 3673 | -7/Factory | Evolved 4 slots: Utility x4 3715 | -7/Factory | Build established: Sprinter 3891 | -7/Factory | Lost 4 parts (1p3n) 3940 | -7/Factory | Sucked down chute 3940 | -7/Factory | Entered Waste 3941 | -7/Waste | Met a frightened Derelict 3955 | -7/Waste | EMP discharged 3955 | -7/Waste | System corruption reached 10% 3963 | -7/Waste | Spotted C-40 Crusher 3983 | -7/Waste | Spotted C-40 Crusher 4027 | -7/Waste | Spotted C-40 Crusher 4033 | -7/Waste | Spotted C-40 Crusher 4038 | -7/Waste | Spotted C-40 Crusher 4048 | -7/Waste | Spotted C-40 Crusher 4055 | -7/Waste | EMP discharged 4061 | -7/Waste | Crushed by Compactor (1 part destroyed, 2 dropped) 4061 | -7/Waste | Crushed by Compactor (1 part destroyed, 2 dropped) 4064 | -7/Waste | Crushed by Compactor (1 part destroyed, 2 dropped) 4068 | -7/Waste | Core integrity fell below 50% 4074 | -7/Waste | Core integrity fell below 20% 4079 | -7/Waste | Destroyed by C-40 Crusher with Compactor Last Messages --------------- 03955_ System corrupted (+8). 03958_ 8/&FH 62FBKX,:VBWSFIZ ZU:2XQNPMNI9YO# 03988_ Carbon-fiber Leg crushed. 04006_ System corrupted: Energy discharge (-54). 04016_ Broken Hvy. Gauss Cannon crushed. 04021_ System corrupted: Matter fused (-10). 04043_ FEMEUT> MS K45LTNMYKB/ LS3TVM:JWV6HF8/ 04045_ ALERT: Foreign system detected. Charging EMP. 04055_ System corrupted (+6). 04059_ System corrupted: Matter fused (-7). 04061_ Lgt. Nuclear Core crushed. 04061_ VTOL Module crushed. 04061_ Relay Coupler [Specialist] crushed. 04061_ Relay Coupler [NC] crushed. 04061_ Datajack crushed. 04061_ Hacking Suite crushed. 04064_ Authchip [Device] crushed. 04064_ Imp. Melee Analysis Suite crushed. 04064_ Melee Analysis Suite crushed. 04076_ System corrupted: Heat flow error (+207). Map ----- +----------------------------------------------------+ | ######## #??????# ###???????????????????? | | #??????# ???????????????????? | | #??????# [???????????????????? | | ! #??????# ????????????????????? | | #??????# ?????????????????????? | | ######## #??????# #?????????????????????? | | #??????# #??????# #?????????????????????? | | #??????# !#??????# #???????????#?????????? | | #??????# %=#??????# #????????? #?????????? | | ######## ######## ######## ##????????? | | ????????? | | #???????? | | #???????? | | #???????? | | ######## ######## ########??????????????? | | #??????# #??????# #?????????????????????? | | #??????# #??????# #?????????????????????? | | #??????# #??????# CC#?????????????????????? | | ######## #??????# CC#?????????????????????? | | #??????# CC#?????????????????????? | | #??????# CC#?????????????????????? | | #??????#CCCC#?????????????????????? | | #??????#CCCC#?????????????????????? | | ########! #??????#CCCC#?????????????????????? | | #??????# #??????#CCCC#?????????????????????? | | #??????# #??????# /@ #?????????????????????? | | #??????# #??????# #?????????????????????? | | ???????# #??????# #?????????????????????? | | ###???????######??????######?????????????????????? | | ?????????????????????????????????????????????????? | | ?????????????????????????????????????????????????? | | ?????????????????????????????????????????????????? | | ?????????????????????????????????????????????????? | | ?????????????????????????????????????????????????? | | ?????????????????????????????????????????????????? | | ?????????????????????????????????????????????????? | | ?????????????????????????????????????????????????? | | ?????????????????????????????????????????????????? | | ?????????????????????????????????????????????????? | | ?????????????????????????????????????????????????? | | ?????????????????????????????????????????????????? | | ?????????????????????????????????????????????????? | | ?????????????????????????????????????????????????? | | ?????????????????????????????????????????????????? | | ?????????????????????????????????????????????????? | | ?????????????????????????????????????????????????? | | ?????????????????????????????????????????????????? | | ?????????????????????????????????????????????????? | | ?????????????????????????????????????????????????? | | ?????????????????????????????????????????????????? | +----------------------------------------------------+ Best States ------------- Heat Dissipation 34 Energy Generation 14 Energy Capacity 265 Matter Stores 300 Matter Capacity 300 Sight Range 16 Terrain Scan Density 10 Evasion (%) 64 Melee Accuracy 11 Recoil Reduction 2 Offensive Hacking 10 Relay Coupler Types 2 Relay Coupler Value 37 Authchip Count 2 Item Schematics ----------------- Terrain Scanner | -9/Materials | Scanalyzed Sensor Array | -9/Materials | Scanalyzed VTOL Module | -9/Recycling | Hacked Robot Schematics ------------------ None Fabricated ------------ Nothing Alien Tech Used ----------------- None Achievements -------------- GoHome() Challenges ------------ None Game ------ Seed ScrapQuantumBrace Manual? 0 Play Time 01:03:52 Cumulative 14.4 hours Start 2024.11.21 @ 21:51:33 End 2024.11.21 @ 23:01:21 Sessions 1 Manual Loads 0 Difficulty Rogue Special Mode None Game No. 23 Rogue 23 Adventurer 0 Explorer 0 Win Type - Total 0 Types 0/0/0/0/0/0/0/0/0 Lore% 4 Gallery% 15 Achievement% 17 Wizard Run 0 Options --------- Layout 1 ASCII 0 Keyboard 0 Movement Mouse Keybinds 0 Fullscreen 1 Font 16/SmallcapsGlow Map View 27x19 Zoom Use 79% Tactical HUD 1 Map Filters NONE Filters NONE Steam 1 RUN: a282e30c-d196-452f-96e9-7be5088b75ec